[Event "*** Titled Tuesday Blitz"]
[Site "Chess.com"]
[Date "2021.03.02"]
[Round "8"]
[White "j_coca"]
[Black "NikolaN98"]
[Result "1-0"]
[WhiteElo "2363"]
[BlackElo "2509"]
[TimeControl "180+1"]
[EndTime "11:28:57 PST"]
[Termination "j_coca won by resignation"]

1. f4 {[%clk 0:03:00.9]} 1... d5 {[%clk 0:02:52.6]} 2. Nf3 {[%clk 0:03:00.3]}
2... Nf6 {[%clk 0:02:49.8]} 3. e3 {[%clk 0:03:00.2]} 3... g6 {[%clk 0:02:39.2]}
4. d4 {[%clk 0:02:59.4]} 4... c5 {[%clk 0:02:34.1]} 5. c3 {[%clk 0:02:58.9]}
5... b6 {[%clk 0:02:28.5]} 6. Nbd2 {[%clk 0:02:57.2]} 6... Bg7 {[%clk
0:02:28.2]} 7. Bd3 {[%clk 0:02:56.1]} 7... O-O {[%clk 0:02:27.4]} 8. O-O {[%clk
0:02:55]} 8... Ba6 {[%clk 0:02:27.6]} 9. Qe2 {[%clk 0:02:55.3]} 9... Qc8 {[%clk
0:02:26.5]} 10. Ne5 {[%clk 0:02:53.5]} 10... Bxd3 {[%clk 0:02:23.3]} 11. Qxd3
{[%clk 0:02:53.3]} 11... Qa6 {[%clk 0:02:21.6]} 12. Ndf3 {[%clk 0:02:46.8]}
12... Qxd3 {[%clk 0:02:20.5]} 13. Nxd3 {[%clk 0:02:47.7]} 13... c4 {[%clk
0:02:15.6]} 14. Nf2 {[%clk 0:02:47.7]} 14... Nc6 {[%clk 0:02:12.8]} 15. Bd2
{[%clk 0:02:46.5]} 15... e6 {[%clk 0:02:11.5]} 16. Rae1 {[%clk 0:02:45.5]} 16...
b5 {[%clk 0:01:58.1]} 17. e4 {[%clk 0:02:44.4]} 17... a5 {[%clk 0:01:57.6]} 18.
e5 {[%clk 0:02:42.5]} 18... Nd7 {[%clk 0:01:35.6]} 19. g4 {[%clk 0:02:42.6]}
19... Rfe8 {[%clk 0:01:22.9]} 20. f5 {[%clk 0:02:38.3]} 20... b4 {[%clk
0:01:07.2]} 21. h4 {[%clk 0:02:23.9]} 21... Rab8 {[%clk 0:01:06]} 22. Kg2 {[%clk
0:02:22]} 22... bxc3 {[%clk 0:01:05.3]} 23. Bxc3 {[%clk 0:02:20.9]} 23... Nb6
{[%clk 0:01:04.9]} 24. f6 {[%clk 0:02:17.3]} 24... Bf8 {[%clk 0:00:57.9]} 25. h5
{[%clk 0:02:17.4]} 25... g5 {[%clk 0:00:48.3]} 26. Nxg5 {[%clk 0:02:14.5]} 26...
Na4 {[%clk 0:00:48.4]} 27. Re2 {[%clk 0:02:12.9]} 27... Ba3 {[%clk 0:00:43.7]}
28. Nd1 {[%clk 0:02:04.7]} 28... Nxc3 {[%clk 0:00:39.1]} 29. bxc3 {[%clk
0:02:03.4]} 29... Rb7 {[%clk 0:00:30.7]} 30. Nf3 {[%clk 0:01:52.9]} 30... Reb8
{[%clk 0:00:20.3]} 31. Ne3 {[%clk 0:01:52.1]} 31... Bb2 {[%clk 0:00:18.9]} 32.
Rc2 {[%clk 0:01:48.2]} 32... Ba3 {[%clk 0:00:18.4]} 33. Rff2 {[%clk 0:01:47.7]}
33... Rb1 {[%clk 0:00:18.1]} 34. g5 {[%clk 0:01:47.3]} 34... R8b2 {[%clk
0:00:17.8]} 35. Rxb2 {[%clk 0:01:44.8]} 35... Bxb2 {[%clk 0:00:18]} 36. Rc2
{[%clk 0:01:44]} 36... Ba1 {[%clk 0:00:17.6]} 37. g6 {[%clk 0:01:37.7]} 37...
hxg6 {[%clk 0:00:16.9]} 38. hxg6 {[%clk 0:01:37.8]} 38... fxg6 {[%clk
0:00:17.4]} 39. Nh4 {[%clk 0:01:38]} 39... Kf7 {[%clk 0:00:16.2]} 40. Ng4 {[%clk
0:01:38.1]} 40... g5 {[%clk 0:00:13]} 41. Nh6+ {[%clk 0:01:36.3]} 41... Ke8
{[%clk 0:00:07.7]} 42. f7+ {[%clk 0:01:34.3]} 42... Kf8 {[%clk 0:00:06.9]} 43.
Ng6+ {[%clk 0:01:34.6]} 43... Kg7 {[%clk 0:00:07.2]} 44. f8=Q+ {[%clk
0:01:34.9]} 44... Kxg6 {[%clk 0:00:07.7]} 45. Ng4 {[%clk 0:01:27.7]} 1-0

[Event "*** Titled Tuesday Blitz"]
[Site "Chess.com"]
[Date "2021.03.02"]
[Round "8"]
[White "Kapibara_Warri0r"]
[Black "Eloist"]
[Result "1-0"]
[WhiteElo "2225"]
[BlackElo "2314"]
[TimeControl "180+1"]
[EndTime "11:28:58 PST"]
[Termination "Kapibara_Warri0r won by resignation"]

1. e4 {[%clk 0:03:00.9]} 1... e6 {[%clk 0:02:59.8]} 2. d4 {[%clk 0:03:00]} 2...
d5 {[%clk 0:03:00.2]} 3. Nc3 {[%clk 0:03:00.5]} 3... Nf6 {[%clk 0:03:00.2]} 4.
Bg5 {[%clk 0:02:56]} 4... dxe4 {[%clk 0:02:59.5]} 5. Nxe4 {[%clk 0:02:56.1]}
5... Be7 {[%clk 0:02:59.6]} 6. Bxf6 {[%clk 0:02:56.2]} 6... gxf6 {[%clk
0:02:59.7]} 7. Nf3 {[%clk 0:02:56]} 7... f5 {[%clk 0:02:59.7]} 8. Ng3 {[%clk
0:02:55]} 8... c5 {[%clk 0:02:59]} 9. c3 {[%clk 0:02:52.9]} 9... cxd4 {[%clk
0:02:38.9]} 10. cxd4 {[%clk 0:02:52.5]} 10... Bb4+ {[%clk 0:02:29.3]} 11. Nd2
{[%clk 0:02:35.8]} 11... Qxd4 {[%clk 0:02:24.7]} 12. a3 {[%clk 0:02:36.4]} 12...
Bc5 {[%clk 0:02:05.5]} 13. Bb5+ {[%clk 0:02:26.9]} 13... Nc6 {[%clk 0:01:57.7]}
14. O-O {[%clk 0:02:23]} 14... O-O {[%clk 0:01:52.2]} 15. b4 {[%clk 0:02:19.9]}
15... Bb6 {[%clk 0:01:41.5]} 16. Bxc6 {[%clk 0:02:13.4]} 16... bxc6 {[%clk
0:01:40.9]} 17. Nf3 {[%clk 0:02:08]} 17... Qxd1 {[%clk 0:01:38.7]} 18. Rfxd1
{[%clk 0:02:08.9]} 18... Ba6 {[%clk 0:01:28.8]} 19. Ne5 {[%clk 0:02:03.5]} 19...
Rad8 {[%clk 0:01:03.1]} 20. Nxc6 {[%clk 0:01:57.8]} 20... Rxd1+ {[%clk
0:01:00.1]} 21. Rxd1 {[%clk 0:01:58.7]} 21... Bb5 {[%clk 0:00:51]} 22. Ne5
{[%clk 0:01:52]} 22... Rd8 {[%clk 0:00:43.1]} 23. Rxd8+ {[%clk 0:01:44.2]} 23...
Bxd8 {[%clk 0:00:44]} 24. Nf1 {[%clk 0:01:37.5]} 24... f6 {[%clk 0:00:41.6]} 25.
Nf3 {[%clk 0:01:34.9]} 25... e5 {[%clk 0:00:40]} 26. Nh4 {[%clk 0:01:29.3]}
26... f4 {[%clk 0:00:36.9]} 27. Nd2 {[%clk 0:01:26]} 27... Kf7 {[%clk
0:00:36.2]} 28. Nf5 {[%clk 0:01:18.5]} 28... Ke6 {[%clk 0:00:35.1]} 29. g4
{[%clk 0:01:18.8]} 29... fxg3 {[%clk 0:00:34.6]} 30. Nxg3 {[%clk 0:01:19.7]}
30... f5 {[%clk 0:00:33]} 31. Nb3 {[%clk 0:01:17.3]} 31... Bg5 {[%clk
0:00:28.3]} 32. Nc5+ {[%clk 0:01:14.6]} 32... Kf6 {[%clk 0:00:28]} 33. a4 {[%clk
0:01:04.4]} 33... Bc4 {[%clk 0:00:27.9]} 34. Nd7+ {[%clk 0:00:54.4]} 34... Kg6
{[%clk 0:00:25]} 35. Nxe5+ {[%clk 0:00:49.1]} 35... Kf6 {[%clk 0:00:22.1]} 36.
Nxc4 {[%clk 0:00:49.1]} 1-0

[Event "*** Titled Tuesday Blitz"]
[Site "Chess.com"]
[Date "2021.03.02"]
[Round "8"]
[White "JoakimVonAnd"]
[Black "bylavochka"]
[Result "1-0"]
[WhiteElo "2510"]
[BlackElo "2211"]
[TimeControl "180+1"]
[EndTime "11:29:03 PST"]
[Termination "JoakimVonAnd won by checkmate"]

1. d4 {[%clk 0:03:00.9]} 1... Nf6 {[%clk 0:02:58.8]} 2. c4 {[%clk 0:02:55.1]}
2... g6 {[%clk 0:02:58.5]} 3. Nc3 {[%clk 0:02:51.5]} 3... Bg7 {[%clk 0:02:58.5]}
4. e4 {[%clk 0:02:49.9]} 4... O-O {[%clk 0:02:58.5]} 5. Be2 {[%clk 0:02:50.3]}
5... d6 {[%clk 0:02:58.5]} 6. Be3 {[%clk 0:02:50.5]} 6... e5 {[%clk 0:02:53.9]}
7. d5 {[%clk 0:02:50.5]} 7... c6 {[%clk 0:02:46.7]} 8. g4 {[%clk 0:02:50.2]}
8... cxd5 {[%clk 0:02:41.9]} 9. cxd5 {[%clk 0:02:41.1]} 9... a6 {[%clk 0:02:42]}
10. g5 {[%clk 0:02:36.6]} 10... Ne8 {[%clk 0:02:33.9]} 11. h4 {[%clk 0:02:36.2]}
11... f5 {[%clk 0:02:30.5]} 12. gxf6 {[%clk 0:02:35.2]} 12... Qxf6 {[%clk
0:02:16.7]} 13. Nf3 {[%clk 0:02:19.9]} 13... h6 {[%clk 0:02:15.2]} 14. Qd2
{[%clk 0:02:06.6]} 14... Bg4 {[%clk 0:02:08.7]} 15. Nh2 {[%clk 0:01:56.7]} 15...
Bxe2 {[%clk 0:02:07.6]} 16. Qxe2 {[%clk 0:01:52.3]} 16... Kh7 {[%clk 0:02:00.3]}
17. O-O-O {[%clk 0:01:49]} 17... b5 {[%clk 0:01:49.8]} 18. Rdg1 {[%clk
0:01:42.8]} 18... Nd7 {[%clk 0:01:40.6]} 19. Rg3 {[%clk 0:01:25]} 19... Nc5
{[%clk 0:01:07.4]} 20. Rhg1 {[%clk 0:01:18.4]} 20... b4 {[%clk 0:01:01]} 21. Nd1
{[%clk 0:01:07.2]} 21... Rc8 {[%clk 0:00:55.9]} 22. Kb1 {[%clk 0:01:05.7]} 22...
b3 {[%clk 0:00:43.8]} 23. Rxg6 {[%clk 0:00:52.9]} 23... Qf7 {[%clk 0:00:21.5]}
24. Qh5 {[%clk 0:00:46.7]} 24... Qf4 {[%clk 0:00:01.8]} 25. Rxg7+ {[%clk
0:00:41.2]} 25... Nxg7 {[%clk 0:00:01.5]} 26. Qg6+ {[%clk 0:00:40.9]} 26... Kh8
{[%clk 0:00:01.4]} 27. Qxg7# {[%clk 0:00:41.8]} 1-0

[Event "*** Titled Tuesday Blitz"]
[Site "Chess.com"]
[Date "2021.03.02"]
[Round "8"]
[White "DonPreuss"]
[Black "JQuiroga18"]
[Result "0-1"]
[WhiteElo "2294"]
[BlackElo "2434"]
[TimeControl "180+1"]
[EndTime "11:29:03 PST"]
[Termination "JQuiroga18 won by resignation"]

1. d4 {[%clk 0:03:00.9]} 1... Nf6 {[%clk 0:02:59.7]} 2. Nc3 {[%clk 0:03:00.3]}
2... d5 {[%clk 0:02:58.8]} 3. e4 {[%clk 0:03:00.4]} 3... dxe4 {[%clk 0:02:58.4]}
4. f3 {[%clk 0:03:00.1]} 4... e3 {[%clk 0:02:58.1]} 5. Bxe3 {[%clk 0:02:59.8]}
5... e6 {[%clk 0:02:58.1]} 6. Bd3 {[%clk 0:02:59.5]} 6... Be7 {[%clk 0:02:58]}
7. Nge2 {[%clk 0:03:00]} 7... O-O {[%clk 0:02:57.9]} 8. O-O {[%clk 0:03:00.5]}
8... Nbd7 {[%clk 0:02:58.1]} 9. Ng3 {[%clk 0:03:00]} 9... c5 {[%clk 0:02:57.2]}
10. Nce4 {[%clk 0:02:44.3]} 10... b6 {[%clk 0:02:13.8]} 11. c3 {[%clk
0:02:35.3]} 11... Bb7 {[%clk 0:02:09.7]} 12. f4 {[%clk 0:02:23.8]} 12... Rc8
{[%clk 0:01:50.1]} 13. Ng5 {[%clk 0:02:19.3]} 13... h6 {[%clk 0:01:46.6]} 14.
Nh5 {[%clk 0:02:07]} 14... cxd4 {[%clk 0:01:39.2]} 15. Bxd4 {[%clk 0:01:38.9]}
15... Nxh5 {[%clk 0:01:36.6]} 16. Qxh5 {[%clk 0:01:37.9]} 16... Bxg5 {[%clk
0:01:34.7]} 17. fxg5 {[%clk 0:01:37.3]} 17... Qxg5 {[%clk 0:01:34.5]} 18. Qh3
{[%clk 0:01:32]} 18... Nc5 {[%clk 0:01:16.5]} 19. Bc2 {[%clk 0:01:22.4]} 19...
Be4 {[%clk 0:01:08.6]} 20. Bxc5 {[%clk 0:01:15.1]} 20... Qxc5+ {[%clk
0:01:07.5]} 21. Kh1 {[%clk 0:01:02.1]} 21... Bxc2 {[%clk 0:01:04.6]} 22. Rf3
{[%clk 0:01:02.1]} 22... Bf5 {[%clk 0:01:00.8]} 23. Qg3 {[%clk 0:00:52.8]} 23...
Rfd8 {[%clk 0:01:00]} 24. Raf1 {[%clk 0:00:52.5]} 24... Rd2 {[%clk 0:00:58]} 25.
Qf4 {[%clk 0:00:43]} 25... Rcd8 {[%clk 0:00:55.7]} 26. g4 {[%clk 0:00:41.7]}
26... Bg6 {[%clk 0:00:54.6]} 27. h4 {[%clk 0:00:41.7]} 27... Qd6 {[%clk
0:00:51.3]} 28. h5 {[%clk 0:00:19.5]} 28... Be4 {[%clk 0:00:45.9]} 29. Qxf7+
{[%clk 0:00:11.8]} 29... Kh8 {[%clk 0:00:45.8]} 30. Qxg7+ {[%clk 0:00:03.1]}
30... Kxg7 {[%clk 0:00:45]} 0-1

[Event "*** Titled Tuesday Blitz"]
[Site "Chess.com"]
[Date "2021.03.02"]
[Round "8"]
[White "WcmDominicToretto"]
[Black "XxPetroffsxX"]
[Result "0-1"]
[WhiteElo "1915"]
[BlackElo "2143"]
[TimeControl "180+1"]
[EndTime "11:29:04 PST"]
[Termination "XxPetroffsxX won by resignation"]

1. e4 {[%clk 0:03:00.9]} 1... e5 {[%clk 0:02:59.2]} 2. Nf3 {[%clk 0:02:52.2]}
2... Nc6 {[%clk 0:02:59.5]} 3. Nc3 {[%clk 0:02:51.4]} 3... g6 {[%clk 0:02:58.5]}
4. d4 {[%clk 0:02:49]} 4... exd4 {[%clk 0:02:58.5]} 5. Nxd4 {[%clk 0:02:48.9]}
5... Bg7 {[%clk 0:02:58.6]} 6. Nxc6 {[%clk 0:02:47.2]} 6... bxc6 {[%clk
0:02:59.2]} 7. Bd3 {[%clk 0:02:46.4]} 7... Ne7 {[%clk 0:02:59.1]} 8. O-O {[%clk
0:02:45.4]} 8... O-O {[%clk 0:02:59.6]} 9. Be3 {[%clk 0:02:43.6]} 9... a5 {[%clk
0:02:58.5]} 10. Qd2 {[%clk 0:02:43.1]} 10... a4 {[%clk 0:02:58.1]} 11. a3 {[%clk
0:02:41.2]} 11... d5 {[%clk 0:02:56.9]} 12. Bh6 {[%clk 0:02:39.3]} 12... Be6
{[%clk 0:02:39]} 13. Rab1 {[%clk 0:02:31.9]} 13... Re8 {[%clk 0:02:34.1]} 14.
Bxg7 {[%clk 0:02:25.5]} 14... Kxg7 {[%clk 0:02:33.7]} 15. f4 {[%clk 0:02:26]}
15... f5 {[%clk 0:02:23.1]} 16. e5 {[%clk 0:02:16.7]} 16... c5 {[%clk
0:02:21.5]} 17. Be2 {[%clk 0:02:09.4]} 17... c6 {[%clk 0:02:20.2]} 18. Qd1
{[%clk 0:02:00.9]} 18... d4 {[%clk 0:02:18.6]} 19. Nxa4 {[%clk 0:01:55.1]} 19...
Rxa4 {[%clk 0:02:14.3]} 20. g4 {[%clk 0:01:55]} 20... Ra8 {[%clk 0:02:05]} 21.
gxf5 {[%clk 0:01:53.2]} 21... Nxf5 {[%clk 0:02:03.9]} 22. Qd2 {[%clk 0:01:51]}
22... Ne3 {[%clk 0:02:02.1]} 23. Rf2 {[%clk 0:01:48]} 23... Bf5 {[%clk 0:01:55]}
24. Bf3 {[%clk 0:01:47]} 24... Qd7 {[%clk 0:01:52.2]} 25. Rc1 {[%clk 0:01:42.2]}
25... Rab8 {[%clk 0:01:41.5]} 26. b3 {[%clk 0:01:41]} 26... Be6 {[%clk
0:01:32.2]} 27. Be4 {[%clk 0:01:30.8]} 27... Bd5 {[%clk 0:01:31.6]} 28. Re1
{[%clk 0:01:16]} 28... Bxe4 {[%clk 0:01:30.9]} 29. Rxe3 {[%clk 0:01:15.5]} 29...
Bf5 {[%clk 0:01:25.7]} 30. Rg3 {[%clk 0:01:14.6]} 30... Qd5 {[%clk 0:01:21.8]}
31. Rg5 {[%clk 0:01:09.7]} 31... h6 {[%clk 0:01:19.8]} 32. Rg3 {[%clk
0:01:07.5]} 32... Kh7 {[%clk 0:01:19.3]} 33. h4 {[%clk 0:01:05.9]} 33... h5
{[%clk 0:01:17.2]} 34. Rfg2 {[%clk 0:01:01.9]} 34... c4 {[%clk 0:01:16.3]} 35.
b4 {[%clk 0:00:57.7]} 35... c5 {[%clk 0:01:14.7]} 36. Rg5 {[%clk 0:00:52.4]}
36... cxb4 {[%clk 0:01:12.5]} 37. axb4 {[%clk 0:00:51.6]} 37... c3 {[%clk
0:01:10.8]} 38. Qf2 {[%clk 0:00:49.6]} 38... Rxb4 {[%clk 0:01:08.1]} 39. Qg3
{[%clk 0:00:49.1]} 39... Rb1+ {[%clk 0:01:07]} 40. Kh2 {[%clk 0:00:48.8]} 40...
Rg8 {[%clk 0:01:02.9]} 41. Qf2 {[%clk 0:00:37.1]} 41... Rd1 {[%clk 0:00:59.3]}
42. Qf1 {[%clk 0:00:29.7]} 42... Rxf1 {[%clk 0:00:58.6]} 0-1

[Event "*** Titled Tuesday Blitz"]
[Site "Chess.com"]
[Date "2021.03.02"]
[Round "8"]
[White "VFernandezB"]
[Black "frankshar"]
[Result "1-0"]
[WhiteElo "2491"]
[BlackElo "2346"]
[TimeControl "180+1"]
[EndTime "11:29:06 PST"]
[Termination "VFernandezB won by resignation"]

1. e4 {[%clk 0:03:00.9]} 1... c6 {[%clk 0:02:59.7]} 2. d4 {[%clk 0:03:00.6]}
2... d5 {[%clk 0:03:00.6]} 3. e5 {[%clk 0:03:01]} 3... Bf5 {[%clk 0:03:00.5]} 4.
Nc3 {[%clk 0:03:01.6]} 4... e6 {[%clk 0:02:56.4]} 5. g4 {[%clk 0:03:01.1]} 5...
Bg6 {[%clk 0:02:56.3]} 6. Nge2 {[%clk 0:03:01.7]} 6... h5 {[%clk 0:02:50.8]} 7.
Nf4 {[%clk 0:03:00.9]} 7... Bh7 {[%clk 0:02:50.9]} 8. Nxh5 {[%clk 0:03:00.6]}
8... c5 {[%clk 0:02:50.5]} 9. Be3 {[%clk 0:02:57.9]} 9... Nc6 {[%clk 0:02:50.1]}
10. Bb5 {[%clk 0:02:57.6]} 10... Ne7 {[%clk 0:02:40.2]} 11. dxc5 {[%clk
0:02:51.8]} 11... a6 {[%clk 0:02:37.3]} 12. Ba4 {[%clk 0:02:46]} 12... Ng6
{[%clk 0:02:04.6]} 13. f4 {[%clk 0:02:22.4]} 13... Be7 {[%clk 0:01:48.8]} 14.
Qe2 {[%clk 0:02:00.8]} 14... Bh4+ {[%clk 0:01:33.8]} 15. Ng3 {[%clk 0:01:59]}
15... Kf8 {[%clk 0:01:17.2]} 16. O-O-O {[%clk 0:01:56.2]} 16... Qa5 {[%clk
0:01:08.2]} 17. Bxc6 {[%clk 0:01:40.3]} 17... bxc6 {[%clk 0:01:08.2]} 18. Rhf1
{[%clk 0:00:58.5]} 18... Rb8 {[%clk 0:01:06.3]} 19. a3 {[%clk 0:00:52]} 19...
Ke7 {[%clk 0:00:55.9]} 20. Bd4 {[%clk 0:00:43.2]} 20... Rb7 {[%clk 0:00:37.2]}
21. f5 {[%clk 0:00:42.2]} 21... Bg5+ {[%clk 0:00:35.1]} 22. Be3 {[%clk
0:00:38.9]} 22... Rxb2 {[%clk 0:00:24.8]} 23. Bxg5+ {[%clk 0:00:36.1]} 23... Kd7
{[%clk 0:00:21]} 24. Kxb2 {[%clk 0:00:29.8]} 24... Rb8+ {[%clk 0:00:21.5]} 25.
Ka2 {[%clk 0:00:30.2]} 25... Qxc3 {[%clk 0:00:18.5]} 26. Rb1 {[%clk 0:00:28.9]}
26... Nf4 {[%clk 0:00:17.1]} 27. Bxf4 {[%clk 0:00:25.3]} 1-0

[Event "*** Titled Tuesday Blitz"]
[Site "Chess.com"]
[Date "2021.03.02"]
[Round "8"]
[White "BJthechessgod"]
[Black "korkmaz16"]
[Result "0-1"]
[WhiteElo "2257"]
[BlackElo "2406"]
[TimeControl "180+1"]
[EndTime "11:29:07 PST"]
[Termination "korkmaz16 won by checkmate"]

1. d4 {[%clk 0:03:00.9]} 1... Nf6 {[%clk 0:02:59.8]} 2. Nf3 {[%clk 0:02:52.3]}
2... g6 {[%clk 0:02:59]} 3. Bf4 {[%clk 0:02:52.5]} 3... Bg7 {[%clk 0:02:58.2]}
4. e3 {[%clk 0:02:53]} 4... O-O {[%clk 0:02:57.6]} 5. h3 {[%clk 0:02:53.5]} 5...
d6 {[%clk 0:02:57.5]} 6. Be2 {[%clk 0:02:52.7]} 6... Nbd7 {[%clk 0:02:56.8]} 7.
Nbd2 {[%clk 0:02:52.5]} 7... c5 {[%clk 0:02:55]} 8. c3 {[%clk 0:02:52.6]} 8...
Re8 {[%clk 0:02:49.1]} 9. Bh2 {[%clk 0:02:51.3]} 9... b6 {[%clk 0:02:48.3]} 10.
O-O {[%clk 0:02:50.2]} 10... Bb7 {[%clk 0:02:47.6]} 11. Re1 {[%clk 0:02:49.3]}
11... Rc8 {[%clk 0:02:43.8]} 12. a4 {[%clk 0:02:49.1]} 12... a5 {[%clk
0:02:34.9]} 13. Bb5 {[%clk 0:02:44.9]} 13... Bc6 {[%clk 0:02:15.4]} 14. Bxc6
{[%clk 0:02:27.9]} 14... Rxc6 {[%clk 0:02:16.3]} 15. Qb3 {[%clk 0:02:25.8]}
15... d5 {[%clk 0:02:04.9]} 16. Ne5 {[%clk 0:02:14.3]} 16... Nxe5 {[%clk
0:02:04]} 17. Bxe5 {[%clk 0:02:15.2]} 17... Re6 {[%clk 0:02:00.8]} 18. Nf3
{[%clk 0:02:06]} 18... c4 {[%clk 0:01:55.1]} 19. Qb5 {[%clk 0:02:00.6]} 19...
Qd7 {[%clk 0:01:47.3]} 20. Bxf6 {[%clk 0:01:46]} 20... Qxb5 {[%clk 0:01:46]} 21.
axb5 {[%clk 0:01:46.4]} 21... exf6 {[%clk 0:01:35]} 22. Nd2 {[%clk 0:01:44.4]}
22... f5 {[%clk 0:01:35.2]} 23. Nf1 {[%clk 0:01:21.6]} 23... f4 {[%clk
0:01:28.2]} 24. Reb1 {[%clk 0:01:13.2]} 24... Bh6 {[%clk 0:01:25.6]} 25. exf4
{[%clk 0:01:10.9]} 25... Bxf4 {[%clk 0:01:23.4]} 26. g3 {[%clk 0:01:05.5]} 26...
Bh6 {[%clk 0:01:15.6]} 27. Kg2 {[%clk 0:01:06.4]} 27... Re2 {[%clk 0:01:13.8]}
28. Kf3 {[%clk 0:00:59.6]} 28... Rc2 {[%clk 0:01:12]} 29. Ne3 {[%clk 0:00:57.3]}
29... Bxe3 {[%clk 0:01:09]} 30. fxe3 {[%clk 0:00:58.2]} 30... f5 {[%clk
0:01:03.4]} 31. Ra2 {[%clk 0:00:49.4]} 31... g5 {[%clk 0:00:57.8]} 32. Rh1
{[%clk 0:00:25]} 32... Kg7 {[%clk 0:00:56.5]} 33. g4 {[%clk 0:00:15.3]} 33...
Kf6 {[%clk 0:00:55.3]} 34. gxf5 {[%clk 0:00:13.1]} 34... Kxf5 {[%clk 0:00:55.2]}
35. Rg1 {[%clk 0:00:12]} 35... h5 {[%clk 0:00:54.7]} 36. h4 {[%clk 0:00:09.4]}
36... g4+ {[%clk 0:00:54.5]} 37. Kg3 {[%clk 0:00:08.9]} 37... Rxe3# {[%clk
0:00:52.3]} 0-1

[Event "*** Titled Tuesday Blitz"]
[Site "Chess.com"]
[Date "2021.03.02"]
[Round "8"]
[White "Lion-Al-Messi"]
[Black "ural58"]
[Result "1-0"]
[WhiteElo "2452"]
[BlackElo "2542"]
[TimeControl "180+1"]
[EndTime "11:29:08 PST"]
[Termination "Lion-Al-Messi won on time"]

1. e4 {[%clk 0:03:00.5]} 1... d5 {[%clk 0:02:59.6]} 2. exd5 {[%clk 0:03:00.4]}
2... Qxd5 {[%clk 0:02:59.4]} 3. Nc3 {[%clk 0:03:00.9]} 3... Qa5 {[%clk
0:02:59.2]} 4. d4 {[%clk 0:03:01.3]} 4... Nf6 {[%clk 0:02:59.1]} 5. Ne2 {[%clk
0:03:01.5]} 5... Nc6 {[%clk 0:02:43]} 6. g3 {[%clk 0:02:59.9]} 6... e5 {[%clk
0:02:42.7]} 7. Bg2 {[%clk 0:02:59.9]} 7... Nxd4 {[%clk 0:02:28.5]} 8. Nxd4
{[%clk 0:03:00.8]} 8... exd4 {[%clk 0:02:28.7]} 9. Qxd4 {[%clk 0:03:01.5]} 9...
Bc5 {[%clk 0:02:27.6]} 10. Qa4+ {[%clk 0:02:59.3]} 10... Qxa4 {[%clk 0:02:25]}
11. Nxa4 {[%clk 0:03:00.2]} 11... Bd6 {[%clk 0:02:19.3]} 12. Bg5 {[%clk
0:02:59.7]} 12... Ng4 {[%clk 0:02:15.2]} 13. O-O {[%clk 0:02:55.6]} 13... O-O
{[%clk 0:02:13.5]} 14. Rfe1 {[%clk 0:02:47.8]} 14... h6 {[%clk 0:02:10.8]} 15.
Be7 {[%clk 0:02:47.5]} 15... Bxe7 {[%clk 0:02:01.6]} 16. Rxe7 {[%clk 0:02:48.4]}
16... c6 {[%clk 0:01:52.4]} 17. Rd1 {[%clk 0:02:48.1]} 17... Nf6 {[%clk
0:01:49.6]} 18. Nc5 {[%clk 0:02:45.9]} 18... Bg4 {[%clk 0:01:42.9]} 19. f3
{[%clk 0:02:44]} 19... Bf5 {[%clk 0:01:43.1]} 20. Nxb7 {[%clk 0:02:40.1]} 20...
Bxc2 {[%clk 0:01:41.3]} 21. Rc1 {[%clk 0:02:40.2]} 21... Ba4 {[%clk 0:01:40.1]}
22. b3 {[%clk 0:02:40.6]} 22... Bb5 {[%clk 0:01:40.2]} 23. a4 {[%clk 0:02:40.8]}
23... Bd3 {[%clk 0:01:32.1]} 24. f4 {[%clk 0:02:36.5]} 24... Rfe8 {[%clk
0:01:22.5]} 25. Rce1 {[%clk 0:02:24.9]} 25... Rxe7 {[%clk 0:01:19.7]} 26. Rxe7
{[%clk 0:02:25.8]} 26... Kf8 {[%clk 0:01:20.2]} 27. Rc7 {[%clk 0:02:25.1]} 27...
Re8 {[%clk 0:01:03.7]} 28. Nd6 {[%clk 0:02:25.3]} 28... Re1+ {[%clk 0:01:01]}
29. Kf2 {[%clk 0:02:25.4]} 29... Rb1 {[%clk 0:01:01]} 30. Rxf7+ {[%clk
0:02:24.5]} 30... Kg8 {[%clk 0:01:00.7]} 31. Rb7 {[%clk 0:02:24]} 31... Rb2+
{[%clk 0:01:00.4]} 32. Ke3 {[%clk 0:02:16.4]} 32... Ba6 {[%clk 0:01:00.4]} 33.
Rb8+ {[%clk 0:02:15.9]} 33... Kh7 {[%clk 0:00:59.5]} 34. Bxc6 {[%clk 0:02:15.8]}
34... Rxh2 {[%clk 0:00:55.9]} 35. Ne4 {[%clk 0:02:08.5]} 35... Re2+ {[%clk
0:00:50.5]} 36. Kf3 {[%clk 0:02:07.2]} 36... Nh5 {[%clk 0:00:30.4]} 37. Nc5
{[%clk 0:02:04.6]} 37... Nxg3 {[%clk 0:00:14.2]} 38. Nxa6 {[%clk 0:02:02.5]}
38... Rc2 {[%clk 0:00:12.2]} 39. Kxg3 {[%clk 0:01:57.2]} 39... Rxc6 {[%clk
0:00:12.3]} 40. Nb4 {[%clk 0:01:54.9]} 40... Rc3+ {[%clk 0:00:12.3]} 41. Kg4
{[%clk 0:01:54.3]} 41... Rxb3 {[%clk 0:00:13.2]} 42. Nc6 {[%clk 0:01:54]} 42...
Ra3 {[%clk 0:00:13.4]} 43. a5 {[%clk 0:01:50.4]} 43... Ra4 {[%clk 0:00:07.2]}
44. Kf5 {[%clk 0:01:48.3]} 44... g6+ {[%clk 0:00:04.9]} 45. Ke5 {[%clk
0:01:48.6]} 45... h5 {[%clk 0:00:04.8]} 46. Rb7+ {[%clk 0:01:48.3]} 46... Kh6
{[%clk 0:00:05.1]} 47. f5 {[%clk 0:01:46]} 47... gxf5 {[%clk 0:00:04.7]} 48. Kf6
{[%clk 0:01:43.9]} 48... h4 {[%clk 0:00:02.5]} 49. Rb8 {[%clk 0:01:38.1]} 49...
Kh5 {[%clk 0:00:02.6]} 50. Ne5 {[%clk 0:01:37.2]} 1-0